lending/lending_fUSD_20251015
["ID","MTS","AMOUNT","RATE_DAILY","PERIOD"]
[391356306,1760561685917,-600.0,0.00046575,60]
[391356307,1760561685979,-600.0,0.00046575,60]
[391356308,1760561686044,-600.0,0.00046575,60]
[391356309,1760561686103,-600.0,0.00046575,60]
[391356310,1760561686165,-600.0,0.00046575,60]
[391356311,1760561686225,-600.0,0.00046575,60]
[391356312,1760561686288,-600.0,0.00046575,60]
[391356313,1760561686348,-600.0,0.00046575,60]
[391356314,1760561686408,-600.0,0.00046575,60]
[391356315,1760561686475,-600.0,0.00046575,60]
[391356316,1760561686535,-600.0,0.00046575,60]
[391356317,1760561686598,-600.0,0.00046575,60]
[391356318,1760561686659,-600.0,0.00046575,60]
[391356319,1760561686723,-151.0,0.00046575,60]
[391356320,1760561686789,-156.587,0.00046575,60]
[391356321,1760561686851,-162.380719,0.00046575,60]
[391356322,1760561686914,-168.3888056,0.00046575,60]
[391356323,1760561686972,-174.61919141,0.00046575,60]
[391356324,1760561687029,-181.08010149,0.00046575,60]
[391356325,1760561687092,-187.78006525,0.00046575,60]
[391356326,1760561687155,-194.72792766,0.00046575,60]
[391356327,1760561687219,-201.93286098,0.00046575,60]
[391356328,1760561687285,-300.0,0.00046575,60]
[391356329,1760561687346,-300.0,0.00046575,60]
[391356330,1760561687411,-300.0,0.00046575,60]
[391356331,1760561687477,-300.0,0.00046575,60]
[391356332,1760561687542,-300.0,0.00046575,60]
[391356333,1760561687610,-300.0,0.00046575,60]
[391356334,1760561687679,-300.0,0.00046575,60]
[391356335,1760561687748,-300.0,0.00046575,60]
[391356336,1760561687817,-300.0,0.00046575,60]
[391356337,1760561687897,-151.0,0.00046575,60]
[391356338,1760561687968,-151.0,0.00046575,60]
[391356339,1760561688041,-151.0,0.00046575,60]
[391356340,1760561688107,-151.0,0.00046575,60]
[391356341,1760561688173,-151.0,0.00046575,60]
[391356342,1760561688241,-151.0,0.00046575,60]
[391356343,1760561688306,-151.0,0.00046575,60]
[391356344,1760561688372,-151.0,0.00046575,60]
[391356345,1760561688432,-151.0,0.00046575,60]
[391356346,1760561690138,29796389.87434267,0.00043985,88]
[391356347,1760561718042,-5000000.0,0.00029915,30]
[391356348,1760561724186,-5000000.0,0.00029915,30]
[391356349,1760561730123,-5000000.0,0.00029915,30]
[391356350,1760561748416,-5000000.0,0.00029915,30]
[391356351,1760561756245,-5000000.0,0.00029915,30]
[391356352,1760561761819,171.12,9.935e-05,2]
[391356353,1760561761865,171.12,0.00011591,2]
[391356354,1760561764886,-5000000.0,0.00029915,30]
[391356355,1760561777188,-5000000.0,0.00029915,30]
[391356356,1760561791524,-10300000.0,0.00029915,30]
[391356357,1760561796533,-10300000.0,0.00029915,30]
[391356362,1760561811705,-10300000.0,0.00029915,30]
[391356363,1760561817858,-10300000.0,0.00029915,30]
[391356364,1760561824750,-1776921.34415623,0.00029915,30]
[391356365,1760561824819,-200640.55752648,0.00029915,30]
[391356366,1760561824893,-3999.95,0.00029915,30]
[391356367,1760561824971,-2000.0,0.00029915,120]
[391356368,1760561825045,-500.0,0.00029915,120]
[391356369,1760561825114,-500.0,0.00029915,120]
[391356370,1760561825178,-500.0,0.00029915,120]
[391356371,1760561825224,-500.0,0.00029915,120]
[391356372,1760561825266,-500.0,0.00029915,120]
[391356373,1760561825304,-500.0,0.00029915,120]
[391356374,1760561825341,-500.0,0.00029915,120]
[391356375,1760561825377,-500.0,0.00029915,120]
[391356376,1760561825415,-500.0,0.00029915,120]
[391356377,1760561825451,-500.0,0.00029915,120]
[391356378,1760561825487,-260.16194043,0.00029915,120]
[391356379,1760561825526,-977.13098481,0.00029915,120]
[391356380,1760561825565,-8310200.85539205,0.00029915,30]
[391356381,1760561841261,-5000000.0,0.00029915,30]
[391356382,1760561846957,-5000000.0,0.00029915,30]
[391356383,1760561878745,-10300000.0,0.00029915,30]
[391356384,1760561886691,-10300000.0,0.00029915,30]
[391356385,1760561898919,-1090999.14460795,0.00029915,30]
[391356386,1760561898976,-217.09957699,0.00029915,120]
[391356387,1760561899018,-500.0,0.00029915,120]
[391356388,1760561899059,-500.0,0.00029915,120]
[391356389,1760561899101,-500.0,0.00029915,120]
[391356390,1760561899140,-500.0,0.00029915,120]
[391356391,1760561899177,-500.0,0.00029915,120]
[391356392,1760561899214,-500.0,0.00029915,120]
[391356393,1760561899252,-500.0,0.00029915,120]
[391356394,1760561899288,-500.0,0.00029915,120]
[391356395,1760561899324,-500.0,0.00029915,120]
[391356396,1760561899359,-500.0,0.00029915,120]
[391356397,1760561899392,-500.0,0.00029915,120]
[391356398,1760561899427,-500.0,0.00029915,120]
[391356399,1760561899462,-500.0,0.00029915,120]
[391356400,1760561899501,-500.0,0.00029915,120]
[391356401,1760561899538,-500.0,0.00029915,120]
[391356402,1760561899575,-500.0,0.00029915,120]
[391356403,1760561899612,-500.0,0.00029915,120]
[391356404,1760561899651,-293.646,0.00029915,120]
[391356405,1760561899690,-500.0,0.00029915,120]
[391356406,1760561899728,-500.0,0.00029915,120]
[391356407,1760561899766,-251.25,0.00029915,120]
[391356408,1760561899804,-500.0,0.00029915,120]
[391356409,1760561899847,-500.0,0.00029915,120]
[391356410,1760561899895,-500.0,0.00029915,120]
[391356411,1760561899937,-500.0,0.00029915,120]
[391356412,1760561899984,-500.0,0.00029915,120]
[391356413,1760561900032,-500.0,0.00029915,120]
[391356414,1760561900076,-500.0,0.00029915,120]
[391356415,1760561900119,-569.65620828,0.00029915,120]
[391356416,1760561900164,-1427.91,0.00029915,120]
[391356417,1760561900208,-1427.91,0.00029915,120]
[391356418,1760561900255,-1427.91,0.00029915,120]
[391356419,1760561900293,-1427.91,0.00029915,120]
[391356420,1760561900330,-1427.91,0.00029915,120]
[391356421,1760561900366,-1427.91,0.00029915,120]
[391356422,1760561900401,-1427.91,0.00029915,120]
[391356423,1760561900435,-1427.91,0.00029915,120]
[391356424,1760561900473,-1427.91,0.00029915,120]
[391356425,1760561900508,-1427.91,0.00029915,120]
[391356426,1760561900543,-1427.91,0.00029915,120]
[391356427,1760561900577,-1427.91,0.00029915,120]
[391356428,1760561900614,-1427.91,0.00029915,120]
[391356429,1760561900650,-1427.91,0.00029915,120]
[391356430,1760561900685,-1427.91,0.00029915,120]
[391356431,1760561900721,-1427.91,0.00029915,120]
[391356432,1760561900757,-1427.91,0.00029915,120]
[391356433,1760561900793,-1427.91,0.00029915,120]
[391356434,1760561900830,-1427.91,0.00029915,120]
[391356435,1760561900867,-1427.91,0.00029915,120]
[391356436,1760561900903,-1427.91,0.00029915,120]
[391356437,1760561900938,-1427.91,0.00029915,120]
[391356438,1760561900974,-1427.91,0.00029915,120]
[391356439,1760561901010,-1428.08,0.00029915,120]
[391356440,1760561901045,-500.0,0.00029915,120]
[391356441,1760561901082,-500.0,0.00029915,120]
[391356442,1760561901120,-500.0,0.00029915,120]
[391356443,1760561901160,-500.0,0.00029915,120]
[391356444,1760561901202,-500.0,0.00029915,120]
[391356445,1760561901240,-500.0,0.00029915,120]
[391356446,1760561901277,-500.0,0.00029915,120]
[391356447,1760561901312,-500.0,0.00029915,120]
[391356448,1760561901347,-500.0,0.00029915,120]
[391356449,1760561901381,-500.0,0.00029915,120]
[391356450,1760561901416,-500.0,0.00029915,120]
[391356451,1760561901452,-209.53,0.00029915,120]
[391356452,1760561901490,-686.81,0.00029915,120]
[391356453,1760561901526,-686.81,0.00029915,120]
[391356454,1760561901564,-686.81,0.00029915,120]
[391356455,1760561901604,-686.81,0.00029915,120]
[391356456,1760561901644,-686.81,0.00029915,120]
[391356457,1760561901684,-686.81,0.00029915,120]
[391356458,1760561901723,-686.81,0.00029915,120]
[391356459,1760561901763,-686.81,0.00029915,120]
[391356460,1760561901803,-686.81,0.00029915,120]
[391356461,1760561901843,-686.81,0.00029915,120]
[391356462,1760561901881,-686.81,0.00029915,120]
[391356463,1760561901920,-686.81,0.00029915,120]
[391356464,1760561901958,-686.81,0.00029915,120]
[391356465,1760561901998,-686.81,0.00029915,120]
[391356466,1760561902036,-686.81,0.00029915,120]
[391356467,1760561902075,-686.81,0.00029915,120]
[391356468,1760561902538,-686.81,0.00029915,120]
[391356469,1760561902579,-686.81,0.00029915,120]
[391356470,1760561902619,-686.81,0.00029915,120]
[391356471,1760561902656,-500.0,0.00029915,120]
[391356472,1760561902692,-500.0,0.00029915,120]
[391356473,1760561902727,-500.0,0.00029915,120]
[391356474,1760561902762,-500.0,0.00029915,120]
[391356475,1760561902798,-500.0,0.00029915,120]
[391356476,1760561902834,-500.0,0.00029915,120]
[391356477,1760561902870,-500.0,0.00029915,120]
[391356478,1760561902906,-500.0,0.00029915,120]
[391356479,1760561902941,-500.0,0.00029915,120]
[391356480,1760561902978,-618.47,0.00029915,120]
[391356481,1760561903014,-500.0,0.00029915,120]
[391356482,1760561903051,-500.0,0.00029915,120]
[391356483,1760561903087,-500.0,0.00029915,120]
[391356484,1760561903123,-500.0,0.00029915,120]
[391356485,1760561903158,-500.0,0.00029915,120]
[391356486,1760561903194,-500.0,0.00029915,120]
[391356487,1760561903237,-500.0,0.00029915,120]
[391356488,1760561903274,-449.13042658,0.00029915,120]
[391356489,1760561903313,-500.0,0.00029915,120]
[391356490,1760561903351,-500.0,0.00029915,120]
[391356491,1760561903391,-500.0,0.00029915,120]
[391356492,1760561903428,-500.0,0.00029915,120]
[391356493,1760561903465,-500.0,0.00029915,120]
[391356494,1760561903503,-500.0,0.00029915,120]
[391356495,1760561903542,-500.0,0.00029915,120]
[391356496,1760561903582,-500.0,0.00029915,120]
[391356497,1760561903623,-500.0,0.00029915,120]
[391356498,1760561903663,-500.0,0.00029915,120]
[391356499,1760561903703,-500.0,0.00029915,120]
[391356500,1760561903744,-500.0,0.00029915,120]
[391356501,1760561903786,-383.66435165,0.00029915,120]
[391356502,1760561903825,-830.58,0.00029915,120]
[391356503,1760561903866,-830.58,0.00029915,120]
[391356504,1760561903906,-830.58,0.00029915,120]
[391356505,1760561903945,-830.58,0.00029915,120]
[391356506,1760561903985,-830.58,0.00029915,120]
[391356507,1760561904025,-830.58,0.00029915,120]
[391356508,1760561904065,-830.58,0.00029915,120]
[391356509,1760561904106,-830.58,0.00029915,120]
[391356510,1760561904147,-830.58,0.00029915,120]
[391356511,1760561904189,-830.58,0.00029915,120]
[391356512,1760561904234,-830.58,0.00029915,120]
[391356513,1760561904276,-830.58,0.00029915,120]
[391356514,1760561904316,-830.58,0.00029915,120]
[391356515,1760561904355,-830.58,0.00029915,120]
[391356516,1760561904392,-830.58,0.00029915,120]
[391356517,1760561904429,-830.58,0.00029915,120]
[391356518,1760561904467,-830.58,0.00029915,120]
[391356519,1760561904504,-830.58,0.00029915,120]
[391356520,1760561904540,-830.58,0.00029915,120]
[391356521,1760561904579,-830.58,0.00029915,120]
[391356522,1760561904618,-830.58,0.00029915,120]
[391356523,1760561904656,-830.58,0.00029915,120]
[391356524,1760561904694,-830.58,0.00029915,120]
[391356525,1760561904732,-830.76996316,0.00029915,120]
[391356526,1760561904769,-500.0,0.00029915,120]
[391356527,1760561904807,-500.0,0.00029915,120]
[391356528,1760561904845,-500.0,0.00029915,120]
[391356529,1760561904883,-500.0,0.00029915,120]
[391356530,1760561904919,-500.0,0.00029915,120]
[391356531,1760561904956,-500.0,0.00029915,120]
[391356532,1760561904995,-500.0,0.00029915,120]
[391356533,1760561905033,-500.0,0.00029915,120]
[391356534,1760561905072,-500.0,0.00029915,120]
[391356535,1760561905109,-500.0,0.00029915,120]
[391356536,1760561905145,-500.0,0.00029915,120]
[391356537,1760561905182,-500.0,0.00029915,120]
[391356538,1760561905218,-500.0,0.00029915,120]
[391356539,1760561905255,-500.0,0.00029915,120]
[391356540,1760561905291,-500.0,0.00029915,120]
[391356541,1760561905328,-500.0,0.00029915,120]
[391356542,1760561905365,-500.0,0.00029915,120]
[391356543,1760561905403,-500.0,0.00029915,120]
[391356544,1760561905440,-289.21,0.00029915,120]
[391356545,1760561905478,-500.0,0.00029915,120]
[391356546,1760561905516,-500.0,0.00029915,120]
[391356547,1760561905556,-500.0,0.00029915,120]
[391356548,1760561905596,-500.0,0.00029915,120]
[391356549,1760561905637,-346.05,0.00029915,120]
[391356550,1760561905679,-200.0,0.00029915,120]
[391356551,1760561905720,-500.0,0.00029915,120]
[391356552,1760561905761,-500.0,0.00029915,120]
[391356553,1760561905802,-500.0,0.00029915,120]
[391356554,1760561905844,-232.83678373,0.00029915,120]
[391356555,1760561905885,-500.0,0.00029915,120]
[391356556,1760561905926,-500.0,0.00029915,120]
[391356557,1760561905966,-500.0,0.00029915,120]
[391356558,1760561906009,-516.85,0.00029915,30]
[391356559,1760561906049,-500.0,0.00029915,120]
[391356560,1760561906089,-500.0,0.00029915,120]
[391356561,1760561906128,-500.0,0.00029915,120]
[391356562,1760561906166,-500.0,0.00029915,120]
[391356563,1760561906206,-416.72,0.00029915,120]
[391356564,1760561906246,-550.52,0.00029915,120]
[391356565,1760561906283,-550.52,0.00029915,120]
[391356566,1760561906320,-550.52,0.00029915,120]
[391356567,1760561906357,-500.0,0.00029915,120]
[391356568,1760561906393,-500.0,0.00029915,120]
[391356569,1760561906430,-500.0,0.00029915,120]
[391356570,1760561906466,-550.52,0.00029915,120]
[391356571,1760561906504,-500.0,0.00029915,120]
[391356572,1760561906846,-550.52,0.00029915,120]
[391356573,1760561906887,-500.0,0.00029915,120]
[391356574,1760561906929,-550.52,0.00029915,120]
[391356575,1760561906968,-500.0,0.00029915,120]
[391356576,1760561907009,-550.52,0.00029915,120]
[391356577,1760561907048,-550.52,0.00029915,120]
[391356578,1760561907088,-500.0,0.00029915,120]
[391356579,1760561907130,-550.52,0.00029915,120]
[391356580,1760561907172,-211.96,0.00029915,120]
[391356581,1760561907214,-550.52,0.00029915,120]
[391356582,1760561907263,-550.52,0.00029915,120]
[391356583,1760561907307,-550.52,0.00029915,120]
[391356584,1760561907350,-550.52,0.00029915,120]
[391356585,1760561907391,-550.52,0.00029915,120]
[391356586,1760561907430,-550.52,0.00029915,120]
[391356587,1760561907471,-550.52,0.00029915,120]
[391356588,1760561907519,-550.52,0.00029915,120]
[391356589,1760561907562,-550.52,0.00029915,120]
[391356590,1760561907603,-550.52,0.00029915,120]
[391356591,1760561907642,-550.52,0.00029915,120]
[391356592,1760561907680,-550.52,0.00029915,120]
[391356593,1760561907718,-550.52,0.00029915,120]
[391356594,1760561907758,-550.52,0.00029915,120]
[391356595,1760561907798,-550.56,0.00029915,120]
[391356596,1760561907837,-500.0,0.00029915,120]
[391356597,1760561907877,-500.0,0.00029915,120]
[391356598,1760561907919,-500.0,0.00029915,120]
[391356599,1760561909671,369.38,0.00029915,120]
[391356600,1760561909815,542.3249117,0.00029915,120]
[391356601,1760561910055,610.06,0.00029915,120]
[391356602,1760561910106,610.06,0.00029915,120]
[391356603,1760561910161,610.06,0.00029915,120]
[391356604,1760561910206,610.06,0.00029915,120]
[391356605,1760561910262,610.06,0.00029915,120]
[391356606,1760561910307,610.06,0.00029915,120]
[391356607,1760561910358,610.06,0.00029915,120]
[391356608,1760561910415,610.06,0.00029915,120]
[391356609,1760561910472,610.06,0.00029915,120]
[391356610,1760561910525,610.06,0.00029915,120]
[391356611,1760561910585,610.06,0.00029915,120]
[391356612,1760561910642,610.06,0.00029915,120]
[391356613,1760561910693,610.06,0.00029915,120]
[391356614,1760561910738,610.06,0.00029915,120]
[391356615,1760561910789,610.06,0.00029915,120]
[391356616,1760561910844,610.06,0.00029915,120]
[391356617,1760561910891,610.06,0.00029915,120]
[391356618,1760561910938,610.06,0.00029915,120]
[391356619,1760561910989,610.06,0.00029915,120]
[391356621,1760562152441,204.371,0.00027397,120]
[391356622,1760562264306,-171.12,0.00013246,2]
[391356623,1760562264328,-203.5260081,0.00013423,2]
[391356624,1760562369360,-46.4739919,0.00013423,2]
[391356625,1760562369386,-109.08127327,0.00013423,2]
[391356629,1760562559085,206.56,0.00026986,120]
[391356630,1760562573544,1000.0,0.00027397,120]
[391356631,1760562603166,2877.0358234,0.00027397,120]
[391356632,1760562603212,544.419999,0.00027397,120]
[391356633,1760562612274,218.16600176,0.00025408,120]
[391356634,1760562622777,500.0,0.00027397,120]
[391356635,1760562622981,500.0,0.00027397,120]
[391356636,1760562623198,336.43148317,0.00027397,120]
[391356637,1760562623396,184.0,0.00027397,120]
[391356638,1760562624245,200.0,0.00027397,120]
[391356639,1760562630312,1000.0,0.00027397,120]
[391356650,1760562632069,-41.91872673,0.00013423,2]
[391356651,1760562632084,-166.47344729,0.00013599,2]
[391356652,1760562632095,-629.52,0.00013699,2]
[391356653,1760562632104,-250.01503591,0.00014039,2]
[391356654,1760562632114,-2500.0,0.00014765,2]
[391356655,1760562632123,-155.55526517,0.00014765,2]
[391356656,1760562632133,-250.0,0.00014765,2]
[391356657,1760562632143,-171.12,0.00014902,2]
[391356658,1760562632152,-475.49624517,0.00015322,2]
[391356659,1760562632162,-1200.0,0.00016025,2]
[391356660,1760562632171,-150.99,0.00016116,2]
[391356661,1760562632181,-1474.95,0.00016116,2]
[391356662,1760562632190,-929.4,0.00016438,2]
[391356663,1760562632200,-171.12,0.00016558,2]
[391356664,1760562632209,-198.06,0.00016712,2]
[391356665,1760562632218,-929.4,0.00016839,2]
[391356666,1760562632228,-625.0,0.000169,2]
[391356667,1760562632237,-151.0,0.00016904,2]
[391356668,1760562632247,-151.0,0.00016904,2]
[391356669,1760562632256,-151.0,0.00016904,2]
[391356670,1760562632266,-151.0,0.00016904,2]
[391356671,1760562632276,-151.0,0.00016904,2]
[391356672,1760562632285,-151.0,0.00016904,2]
[391356673,1760562632295,-1143.48108367,0.00017,2]
[391356674,1760562632304,-1029.1329753,0.00017,2]
[391356675,1760562632314,-1143.48108367,0.000172,2]
[391356676,1760562632324,-1029.1329753,0.000172,2]
[391356677,1760562632341,-929.4,0.0001724,2]
[391356678,1760562632351,-1143.48108367,0.000173,2]
[391356679,1760562632360,-1029.1329753,0.000173,2]
[391356680,1760562632370,-1143.48108367,0.000175,2]
[391356681,1760562632380,-1323.0,0.00017608,2]
[391356682,1760562632390,-929.4,0.00017641,2]
[391356683,1760562632401,-1143.48108367,0.000177,2]
[391356684,1760562632412,-550.0,0.000177,2]
[391356686,1760562632422,-416.416,0.00017733,2]
[391356688,1760562632432,-1143.48108367,0.000179,2]
[391356690,1760562632442,-1143.48108367,0.00018,2]
[391356692,1760562632452,-929.4,0.00018042,2]
[391356694,1760562632462,-171.12,0.00018214,2]
[391356696,1760562632472,-250.0,0.00018222,2]
[391356698,1760562632482,-277.35679052,0.00018225,2]
[391356700,1760562632491,-3438.32265716,0.00018389,2]
[391356702,1760562632501,-2943.28108798,0.00018389,2]
[391356704,1760562632511,-8203.0821164,0.00018394,2]
[391356706,1760562632521,-8203.0821164,0.00018397,2]
[391356708,1760562632531,-2257.93773129,0.00018401,2]
[391356710,1760562632540,-1751.97616189,0.00018413,2]
[391356712,1760562632550,-8203.0821164,0.00018416,2]
[391356714,1760562632561,-17147.80740216,0.00018432,2]
[391356716,1760562632571,-1751.97616189,0.00018432,2]
[391356718,1760562632586,-5140.68425354,0.00018435,2]
[391356720,1760562632596,-2257.93773129,0.00018439,2]
[391356722,1760562632606,-2257.93773129,0.00018441,2]
[391356725,1760562632616,-929.4,0.00018443,2]
[391356727,1760562632626,-2943.28108798,0.00018444,2]
[391356729,1760562632635,-5140.68425354,0.00018445,2]
[391356731,1760562632645,-3438.32265716,0.00018456,2]
[391356733,1760562632655,-17147.80740216,0.00018463,2]
[391356734,1760562632664,-1751.97616189,0.0001847,2]
[391356736,1760562632675,-3413.61356938,0.00018482,2]
[391356739,1760562632687,-24.70908778,0.00018482,2]
[391356741,1760562632696,-2943.28108798,0.00018488,2]
[391356743,1760562632707,-17147.80740216,0.00018492,2]
[391356745,1760562632716,-5140.68425354,0.00018492,2]
[391356747,1760562632726,-246.57,0.00018502,2]
[391356749,1760562632736,-450.0,0.00018747,2]
[391356751,1760562632745,-336.0,0.00018797,2]
[391356753,1760562632755,-5116.15,0.00018798,2]
[391356755,1760562632766,-929.4,0.00018845,2]
[391356757,1760562632775,-571.0,0.00018954,2]
[391356759,1760562632785,-604.0,0.00018954,2]
[391356761,1760562632795,-166.66,0.0001896,2]
[391356764,1760562632805,-151.0,0.00019178,2]
[391356765,1760562632815,-4000.0,0.00019178,2]
[391356767,1760562632824,-929.4,0.00019246,2]
[391356770,1760562632840,-666.0,0.00019257,3]
[391356772,1760562632850,-3076.0,0.00019395,2]
[391356774,1760562632862,-334.9997701,0.00019494,2]
[391356776,1760562632872,-287.61899177,0.00019594,2]
[391356778,1760562632882,-151.66,0.00019616,2]
[391356780,1760562632892,-153.9,0.00019616,2]
[391356782,1760562632901,-153.96,0.00019616,2]
[391356784,1760562632911,-150.0,0.00019616,2]
[391356786,1760562632920,-150.0,0.00019616,2]
[391356788,1760562632930,-150.0,0.00019616,2]
[391356790,1760562632939,-929.4,0.00019647,2]
[391356792,1760562632948,-156.587,0.00019726,2]
[391356794,1760562632957,-166.66,0.00019742,2]
[391356796,1760562632968,-473.87,0.00019867,2]
[391356798,1760562632977,-695.07,0.00019867,2]
[391356800,1760562632987,-171.12,0.00019869,2]
[391356802,1760562632997,-214.4,0.000199,2]
[391356804,1760562633006,-625.0,0.00019948,2]
[391356806,1760562633015,-202.93,0.0002,2]
[391356808,1760562633024,-200.0,0.0002,2]
[391356810,1760562633034,-929.4,0.00020048,2]
[391356812,1760562633044,-302.05,0.00020049,2]
[391356814,1760562633054,-168.0,0.00020165,2]
[391356816,1760562633063,-629.52,0.00020187,2]
[391356818,1760562633074,-162.380719,0.00020274,2]
[391356820,1760562633088,-1349.7,0.00020438,2]
[391356822,1760562633098,-150.0,0.00020438,2]
[391356824,1760562633108,-150.0,0.00020438,2]
[391356826,1760562633117,-151.22,0.00020438,2]
[391356828,1760562633128,-546.55,0.00020438,2]
[391356830,1760562633138,-827.06,0.00020438,2]
[391356831,1760562633148,-413.53,0.00020438,2]
[391356833,1760562633158,-1165.92,0.00020438,2]
[391356835,1760562633167,-413.53,0.00020438,2]
[391356837,1760562633178,-413.53,0.00020438,2]
[391356839,1760562633187,-150.0,0.0002044,2]
[391356841,1760562633198,-413.53,0.0002044,2]
[391356843,1760562633207,-929.4,0.00020449,2]
[391356845,1760562633217,-166.66,0.00020525,2]
[391356847,1760562633227,-1000.0,0.00020548,2]
[391356849,1760562633237,-1000.0,0.00020548,2]
[391356852,1760562633246,-1000.0,0.00020548,2]
[391356853,1760562633256,-1000.0,0.00020548,2]
[391356855,1760562633266,-1000.0,0.00020548,2]
[391356857,1760562633276,-151.0,0.00020548,2]
[391356859,1760562633286,-190.69,0.00020548,2]
[391356861,1760562633295,-1000.0,0.000207,2]
[391356863,1760562633305,-1349.7,0.00020712,2]
[391356866,1760562633314,-4996.7715314,0.00020732,2]
[391356868,1760562633324,-1625.5756222,0.00020732,2]
[391356869,1760562633338,-152.0,0.00020786,3]
[391356871,1760562633347,-183.3,0.000208,4]
[391356873,1760562633357,-168.3888056,0.00020822,2]
[391356875,1760562633366,-38926.77160007,0.0002085,2]
[391356877,1760562633379,-4257.867703,0.0002085,2]
[391356880,1760562633390,-926.01549467,0.0002085,2]
[391356882,1760562633405,-11318.71702542,0.0002085,2]
[391356884,1760562633415,-475.49624517,0.0002085,7]
[391356886,1760562633424,-929.4,0.0002085,2]
[391356888,1760562633433,-1000.0,0.0002085,2]
[391356889,1760562633444,-1000.0,0.0002085,2]
[391356891,1760562633453,-1000.0,0.0002085,2]
[391356893,1760562633463,-1000.0,0.0002085,2]
[391356895,1760562633473,-1000.0,0.0002085,2]
[391356897,1760562633485,-1000.0,0.0002085,2]
[391356899,1760562633495,-1000.0,0.0002085,2]
[391356901,1760562633504,-1000.0,0.0002085,2]
[391356903,1760562633514,-370.3669502,0.0002085,2]
[391356904,1760562633561,-629.6330498,0.0002085,2]
[391356905,1760562633571,-121.10290756,0.0002085,2]
[391356913,1760562638056,-151.0,0.00018502,2]
[391356914,1760562638066,-902.0,0.00018798,2]
[391356915,1760562638077,-878.89709244,0.0002085,2]
[391356916,1760562638090,-1000.0,0.0002085,2]
[391356917,1760562638100,-1000.0,0.0002085,2]
[391356918,1760562638110,-1000.0,0.0002085,2]
[391356919,1760562638120,-1000.0,0.0002085,2]
[391356920,1760562638130,-1000.0,0.0002085,2]
[391356921,1760562638140,-1000.0,0.0002085,2]
[391356922,1760562638150,-1000.0,0.0002085,2]
[391356923,1760562638160,-1000.0,0.0002085,2]
[391356924,1760562638170,-749.71391515,0.0002085,2]
[391356925,1760562638181,-19288.03991599,0.000209,30]
[391356926,1760562638191,-475.49624517,0.000209,30]
[391356927,1760562638201,-527.24842716,0.00020947,2]
[391356928,1760562638211,-399.15158212,0.00020963,2]
[391356930,1760562638221,-1349.7,0.00020986,2]
[391356932,1760562638231,-500.0,0.00020999,2]
[391356933,1760562638241,-500.0,0.00020999,2]
[391356936,1760562638252,-431.94356737,0.00020999,2]
[391356937,1760562638262,-500.0,0.00020999,2]
[391356940,1760562638272,-160.0,0.00021,7]
[391356941,1760562638282,-1178.02659185,0.00021,2]
[391356943,1760562638292,-194.4499154,0.00021,2]
[391356944,1760562638303,-258.62913745,0.00021,7]
[391356945,1760562638315,-741.37086255,0.00021,7]
[391356946,1760562638325,-500.0,0.00021,3]
[391356948,1760562638338,-500.0,0.00021,3]